[Event "ESP-ch Seniors 2017"]
[Site "Altea"]
[Date "2017.10.11"]
[Round "5"]
[White "Sarto Ramos, Angel"]
[Black "Fernandez Vicente, Carmelo"]
[Result "1/2-1/2"]
[ECO "A48"]
[WhiteElo "1909"]
[BlackElo "2044"]
[Annotator "NA RC"]
[PlyCount "104"]
[EventDate "2017.??.??"]
[EventType "swiss"]
[EventCountry "ESP"]
[SourceTitle "playchess.com"]
[Source "ChessBase"]
[SourceQuality "1"]
[TimeControl "5400+30"]

{[%evp 35,103,145,32767,32767,32767,79,32767,32767,32767,32767,64,32767,32767,29,32767,32767,32767,32767,32767,75,73,88,79,60,67,63,69,60,32767,32767,81,32767,32767,0,102,50,54,35,31,11,10,12,13,25,108,112,165,150,145,148,151,177,147,166,220,120,163,68,129,121,173,-7,0,0,0,0,11,0,0,0]} 1. d4 {[%emt 0:00:00]} Nf6 {[%emt 0:00:22]} 2. Nf3 {[%emt 0:00:20]} g6 {[%emt 0:00:31]} 3. Nc3 {[%emt 0:01:43]} Bg7 {[%emt 0:02:01]} 4. Bf4 {[%emt 0:01:47]} d6 {[%emt 0:05:22]} 5. Qd2 {[%emt 0:01:16]} O-O {[%emt 0:04:43]} 6. Bh6 {[%emt 0:01:50]} Nbd7 {[%emt 0:02:10]} 7. O-O-O {[%emt 0:01:43] A48: 1 d4 Nf6 2 Nf3 g6: Torre, London and Colle Systems} c5 {[%emt 0:01:13]} 8. Bxg7 {[%emt 0:02:24]} Kxg7 {[%emt 0:00:12]} 9. h4 {[%emt 0:01:23]} (9. e4 cxd4 10. Nxd4 a6 11. h4 Nc5 12. h5 Ng8 13. hxg6 hxg6 14. f3 e5 15. Nb3 Nxb3+ 16. axb3 Be6 17. f4 exf4 18. Qxf4 {½-½ (25) Mednikov,G (2118)-Fradkin,B (2387) Sochi 2016}) 9... h5 {[%emt 0:00:38]} 10. e4 {[%emt 0:02:01]} a6 $146 {[%emt 0:01:58]} ({Predecessor:} 10... Qa5 11. Kb1 a6 {1-0 (36) Ruiz,R (2148)-Bonagura,S (2018) Lodi 2005}) 11. e5 {[%emt 0:04:23]} dxe5 {[%emt 0:01:08]} 12. dxe5 {[%emt 0:03:00]} Nh7 {[%emt 0:01:14]} 13. e6 {[%emt 0:03:00]} fxe6 {[%emt 0:00:59]} 14. Ne5 {[%emt 0:01:41]} Qc7 {[%emt 0:02:57]} 15. Nxd7 {[%emt 0:06:05]} Rd8 {[%emt 0:00:19]} 16. Qe3 {[%emt 0:10:33]} Bxd7 {[%emt 0:02:15]} 17. Bc4 {[%emt 0:06:36]} Rf8 {[%emt 0:04:42]} 18. Ne4 {[%emt 0:09:41]} Rf5 {[%emt 0:07:14]} 19. Ng3 {[%emt 0:02:55]} Rf6 {[%emt 0:03:27]} 20. Rhe1 {[%emt 0:03:47]} Raf8 {[%emt 0:01:42]} 21. Ne4 {[%emt 0:01:35]} Rf5 {[%emt 0:01:16]} 22. f3 {[%emt 0:01:21]} b5 $1 {[%emt 0:01:36]} 23. Be2 {[%emt 0:01:22]} Bc8 {[%emt 0:00:37]} 24. g4 {[%emt 0:02:38]} hxg4 {[%emt 0:01:17]} 25. fxg4 {[%emt 0:00:13]} Qf4 {[%emt 0:00:21]} 26. Qxf4 {[%emt 0:00:54]} Rxf4 {[%emt 0:00:27]} 27. Nxc5 {[%emt 0:00:28]} Nf6 {[%emt 0:01:14]} 28. Nd3 {[%emt 0:05:31]} Re4 {[%emt 0:02:02]} 29. Bf3 {[%emt 0:00:58]} Rxe1 {[%emt 0:00:35]} 30. Rxe1 {[%emt 0:00:48]} ({Ein No Go ist} 30. Nxe1 e5 $11) 30... Rh8 {[%emt 0:03:25]} 31. Rh1 {[%emt 0:01:57]} Nd5 {[%emt 0:01:01]} 32. Kd2 {[%emt 0:04:10]} Rf8 $1 $11 {[%emt 0:00:48] keeps the balance.} 33. Be4 {[%emt 0:02:31]} (33. Ne5 Rf4) 33... Nf6 {[%emt 0:01:30]} 34. Bf3 $1 {[%emt 0:00:29]} Nd7 {[%emt 0:00:57]} 35. Be2 {[%emt 0:01:04]} (35. Bc6 $16) 35... Bb7 {[%emt 0:00:28]} 36. Rh2 {[%emt 0:01:07]} e5 {[%emt 0:03:43]} 37. Rf2 {[%emt 0:02:22]} Rf6 {[%emt 0:03:22]} 38. g5 {[%emt 0:03:16]} Rd6 {[%emt 0:02:41]} 39. Ke3 {[%emt 0:01:34]} Nb6 {[%emt 0:01:41]} (39... e4 $11 40. Nc1 Bd5) 40. Nxe5 {[%emt 0:02:47]} Nd5+ {[%emt 0:01:56]} (40... Re6 $16 {was worth a try.}) 41. Kd2 {[%emt 0:01:35]} Nf4+ {[%emt 0:02:11]} 42. Bd3 {[%emt 0:01:05]} Nxd3 {[%emt 0:01:03]} 43. cxd3 {[%emt 0:00:34]} Bd5 {[%emt 0:00:11]} 44. b3 {[%emt 0:00:27]} a5 {[%emt 0:00:12]} (44... Rd8 {keeps fighting.} 45. Rf1 Be6) 45. Rh2 {[%emt 0:00:58]} (45. Ke3 $18) 45... a4 {[%emt 0:00:26]} 46. bxa4 {[%emt 0:00:19]} ({White should play} 46. Kc3 $16) 46... bxa4 {[%emt 0:00:11]} 47. Ke3 {[%emt 0:00:18]} a3 {[%emt 0:00:15]} 48. h5 $2 {[%emt 0:00:35]} (48. Nc4 $16 Ra6 49. Kd4) 48... gxh5 {[%emt 0:00:18]} 49. Nc4 {[%emt 0:01:25]} Bxc4 {[%emt 0:00:55]} 50. dxc4 {[%emt 0:00:02]} Rb6 {[%emt 0:00:37]} 51. Kd3 {[%emt 0:00:24]} Kg6 {[%emt 0:01:30]} 52. c5 $11 {[%emt 0:00:36]} Rc6 {[%emt 0:00:53]} 1/2-1/2

[Event "ESP-ch Seniors 2017"]
[Site "Altea"]
[Date "2017.10.13"]
[Round "7"]
[White "Suba, Mihai"]
[Black "Fernandez Vicente, Carmelo"]
[Result "1-0"]
[ECO "A33"]
[WhiteElo "2315"]
[BlackElo "2044"]
[Annotator "NA"]
[PlyCount "45"]
[EventDate "2017.??.??"]
[EventType "swiss"]
[EventCountry "ESP"]
[SourceTitle "playchess.com"]
[Source "ChessBase"]
[SourceQuality "1"]
[TimeControl "5400+30"]

1. c4 {[%emt 0:00:04]} c5 {[%emt 0:00:25]} 2. Nf3 {[%emt 0:00:04]} Nc6 {[%emt 0:00:21]} 3. d4 {[%emt 0:00:09]} cxd4 {[%emt 0:01:40]} 4. Nxd4 {[%emt 0:00:02]} Nf6 {[%emt 0:01:33]} 5. Nc3 {[%emt 0:00:18]} e6 {[%emt 0:01:03]} 6. a3 {[%emt 0:02:13]} Be7 {[%emt 0:01:22]} 7. e4 {[%emt 0:03:56]} O-O {[%emt 0:01:56]} 8. Be2 {[%emt 0:00:37]} Qb6 {[%emt 0:03:19] A33: Symmetrical English: 2 Nf3 Nf6 3 d4 cxd4 4 Nxd4 e6 5 Nc3 Nc6} (8... d5 9. exd5 exd5 10. O-O Nxd4 11. Qxd4 dxc4 12. Qxd8 Rxd8 13. Bxc4 Bf5 14. Re1 Kf8 15. h3 Rac8 16. Ba2 Bc5 17. Bb1 Bxb1 18. Rxb1 {0-1 (48) Edouard,R (2626)-Vachier Lagrave,M (2803) chess.com INT 2017}) 9. Nc2 {[%emt 0:03:10]} a6 $146 {[%emt 0:05:48]} ({Predecessor:} 9... Qc7 10. O-O b6 11. b3 Bb7 12. Ne3 Bd6 13. Qd3 Bxh2+ 14. Kh1 Be5 15. Ned1 Nd4 16. f4 Nxe2 17. Qxe2 Nxe4 {0-1 (17) Michna,M (2327)-Peptan,C (2427) Ostrava 1999}) 10. O-O {[%emt 0:00:18]} d6 {[%emt 0:02:17]} 11. Kh1 {[%emt 0:04:07]} Qc7 {[%emt 0:03:18]} 12. f4 {[%emt 0:02:49]} Na5 {[%emt 0:03:09]} 13. Ne3 {[%emt 0:00:20]} b6 {[%emt 0:02:54]} 14. b4 {[%emt 0:04:19]} Nc6 {[%emt 0:03:14]} 15. Bb2 {[%emt 0:03:14]} Bb7 {[%emt 0:02:26]} 16. Rc1 {[%emt 0:00:58]} a5 {[%emt 0:07:58]} 17. Ncd5 {[%emt 0:01:25]} exd5 $2 {[%emt 0:05:08]} (17... Qd8 $16) 18. cxd5 {[%emt 0:00:47]} Qd7 {[%emt 0:00:37]} 19. Bb5 {[%emt 0:04:09]} Rfc8 {[%emt 0:01:51]} 20. Nf5 {[%emt 0:01:50]} Bd8 {[%emt 0:02:00]} 21. dxc6 {[%emt 0:02:57]} Bxc6 {[%emt 0:00:35]} 22. Rxc6 {[%emt 0:00:16]} Rxc6 {[%emt 0:00:51]} 23. Nd4 $18 {[%emt 0:00:37]} 1-0

[Event "ESP-ch Seniors 2017"]
[Site "Altea"]
[Date "2017.10.13"]
[Round "7"]
[White "Garcia Fernandez, Carlos"]
[Black "Pastor Pons, Pedro Maria"]
[Result "1/2-1/2"]
[ECO "C54"]
[WhiteElo "2264"]
[BlackElo "2077"]
[Annotator "NA"]
[PlyCount "39"]
[EventDate "2017.??.??"]
[EventType "swiss"]
[EventCountry "ESP"]
[SourceTitle "playchess.com"]
[Source "ChessBase"]
[SourceQuality "1"]
[TimeControl "5400+30"]

1. e4 {[%emt 0:07:36]} e5 {[%emt 0:00:24]} 2. Nf3 {[%emt 0:02:46]} Nc6 {[%emt 0:00:08]} 3. Bc4 {[%emt 0:00:06]} Bc5 {[%emt 0:02:24]} 4. c3 {[%emt 0:01:54]} Nf6 {[%emt 0:01:22]} 5. d4 {[%emt 0:01:11]} exd4 {[%emt 0:01:07]} 6. cxd4 {[%emt 0:00:09]} Bb4+ {[%emt 0:00:39]} 7. Bd2 {[%emt 0:00:29]} Bxd2+ {[%emt 0:00:43]} 8. Nbxd2 {[%emt 0:00:03]} d5 {[%emt 0:00:17]} 9. exd5 {[%emt 0:00:08]} Nxd5 {[%emt 0:00:10]} 10. Qb3 {[%emt 0:00:49]} Nce7 {[%emt 0:00:59]} 11. O-O {[%emt 0:02:11]} O-O {[%emt 0:00:18]} 12. Rfe1 {[%emt 0:00:20]} c6 {[%emt 0:05:47]} 13. a4 {[%emt 0:04:05]} Rb8 {[%emt 0:17:15]} 14. Ne4 {[%emt 0:09:38] C54: Giuoco Piano: 4 c3 Nf6, main lines with 5 d4 and 5 d3} h6 {[%emt 0:04:23]} 15. Qa3 $146 {[%emt 0:06:40]} ({Predecessor:} 15. Ne5 Bf5 16. Nc5 Qc7 17. Rac1 Rfd8 18. Qf3 Bg6 19. Nxg6 Nxg6 20. Bxd5 Rxd5 21. Na6 Qd8 22. Nxb8 Qxb8 {1-0 (50) Michiels,R (2262)-Petkov,V (2484) Belgium 2009}) 15... a5 {[%emt 0:04:29]} 16. Bxd5 {[%emt 0:06:35]} Nxd5 {[%emt 0:00:35]} 17. h3 {[%emt 0:01:17]} Bf5 {[%emt 0:06:16]} 18. Ng3 {[%emt 0:08:21]} Bh7 {[%emt 0:10:09]} 19. Rad1 {[%emt 0:04:11]} Re8 {[%emt 0:06:06]} 20. Rxe8+ $15 {[%emt 0:02:16]} 1/2-1/2

[Event "ESP-ch Seniors 2017"]
[Site "Altea"]
[Date "2017.10.13"]
[Round "7"]
[White "Lloret Ramis, Juan Jose"]
[Black "Lloret Climent, Miguel"]
[Result "1/2-1/2"]
[ECO "A19"]
[WhiteElo "2120"]
[BlackElo "1950"]
[Annotator "NA"]
[PlyCount "41"]
[EventDate "2017.??.??"]
[EventType "swiss"]
[EventCountry "ESP"]
[SourceTitle "playchess.com"]
[Source "ChessBase"]
[SourceQuality "1"]
[TimeControl "5400+30"]

1. c4 Nf6 2. Nc3 {[%emt 0:00:28]} e6 {[%emt 0:00:44]} 3. e4 {[%emt 0:00:10]} c5 {[%emt 0:00:07]} 4. e5 {[%emt 0:00:47]} Ng8 {[%emt 0:00:15]} 5. Nf3 {[%emt 0:00:13]} Nc6 {[%emt 0:00:16]} 6. d4 {[%emt 0:00:12]} cxd4 {[%emt 0:00:54]} 7. Nxd4 {[%emt 0:00:09]} Nxe5 {[%emt 0:00:36]} 8. Ndb5 {[%emt 0:00:55]} f6 {[%emt 0:00:42]} 9. Be3 {[%emt 0:01:45]} a6 {[%emt 0:01:05]} 10. Nd6+ {[%emt 0:00:15]} Bxd6 {[%emt 0:00:30]} 11. Qxd6 {[%emt 0:00:04]} Ne7 {[%emt 0:00:51]} 12. Bb6 {[%emt 0:02:02]} Nf5 {[%emt 0:00:22]} 13. Bxd8 {[%emt 0:00:09]} Nxd6 {[%emt 0:00:20]} 14. Bc7 {[%emt 0:00:04]} Ke7 {[%emt 0:09:02]} 15. c5 {[%emt 0:00:18]} Ne8 {[%emt 0:05:59]} 16. Bb6 {[%emt 0:00:15]} d5 {[%emt 0:05:34]} 17. cxd6+ {[%emt 0:00:17]} Nxd6 {[%emt 0:01:42]} 18. Bc5 {[%emt 0:00:14]} Nef7 {[%emt 0:01:47]} 19. O-O-O {[%emt 0:12:42]} Rd8 {[%emt 0:02:23]} 20. g3 {[%emt 0:22:02]} Bd7 {[%emt 0:06:35]} 21. Bh3 {[%emt 0:13:01]} 1/2-1/2

[Event "ESP-ch Seniors 2017"]
[Site "Altea"]
[Date "2017.10.13"]
[Round "7"]
[White "Fernandez Perez, Josep"]
[Black "Buxade Roca, Guillermo"]
[Result "1/2-1/2"]
[ECO "B33"]
[WhiteElo "2045"]
[BlackElo "2025"]
[Annotator "NA"]
[PlyCount "36"]
[EventDate "2017.??.??"]
[EventType "swiss"]
[EventCountry "ESP"]
[SourceTitle "playchess.com"]
[Source "ChessBase"]
[SourceQuality "1"]
[TimeControl "5400+30"]

1. e4 {[%emt 0:00:00]} c5 {[%emt 0:00:11]} 2. Nf3 {[%emt 0:00:31]} Nc6 {[%emt 0:00:32]} 3. d4 {[%emt 0:00:38]} cxd4 {[%emt 0:00:33]} 4. Nxd4 {[%emt 0:00:18]} Nf6 {[%emt 0:00:56]} 5. Nc3 {[%emt 0:00:48]} e5 {[%emt 0:00:44]} 6. Ndb5 {[%emt 0:01:12]} d6 {[%emt 0:01:12]} 7. Bg5 {[%emt 0:01:37]} a6 {[%emt 0:01:13]} 8. Na3 {[%emt 0:00:19]} b5 {[%emt 0:01:33]} 9. Nd5 {[%emt 0:01:37]} Be7 {[%emt 0:01:00]} 10. Bxf6 {[%emt 0:01:28]} Bxf6 {[%emt 0:00:24]} 11. c4 {[%emt 0:01:14]} b4 {[%emt 0:02:10]} 12. Nc2 {[%emt 0:02:50]} a5 {[%emt 0:01:13]} 13. g3 {[%emt 0:02:07]} g6 {[%emt 0:03:09]} 14. Bg2 {[%emt 0:04:09]} Bg7 {[%emt 0:00:39]} 15. O-O {[%emt 0:00:39]} O-O {[%emt 0:00:32]} 16. Qd3 {[%emt 0:02:53]} Be6 {[%emt 0:01:13]} 17. Rad1 {[%emt 0:01:30]} Rc8 {[%emt 0:01:57]} 18. b3 {[%emt 0:03:42]} Bxd5 1/2-1/2

[Event "ESP-ch Seniors 2017"]
[Site "Altea"]
[Date "2017.10.13"]
[Round "7"]
[White "Vinal Gutierrez, Pedro"]
[Black "Campos Calvo-Sotelo, Juan"]
[Result "1-0"]
[ECO "A40"]
[WhiteElo "2041"]
[BlackElo "1796"]
[Annotator "NA RC"]
[PlyCount "112"]
[EventDate "2017.??.??"]
[EventType "swiss"]
[EventCountry "ESP"]
[SourceTitle "playchess.com"]
[Source "ChessBase"]
[SourceQuality "1"]
[TimeControl "5400+30"]

1. d4 {[%emt 0:00:00]} b5 {[%emt 0:00:13]} 2. e4 {[%emt 0:00:00]} a6 {[%emt 0:00:16]} 3. Bd3 {[%emt 0:00:21]} e6 {[%emt 0:00:19]} 4. Nf3 {[%emt 0:00:22]} c5 {[%emt 0:00:27]} 5. c3 {[%emt 0:00:14]} Bb7 {[%emt 0:00:12]} 6. O-O {[%emt 0:00:20]} Nf6 {[%emt 0:01:08]} 7. e5 {[%emt 0:00:29] B28: Sicilian: 2 Nf3 a6 (O'Kelly Variation)} (7. Re1 Qc7 8. a4 c4 9. Bc2 d5 10. e5 Ne4 11. Nbd2 Nxd2 12. Bxd2 h6 13. b4 cxb3 14. Bxb3 Nd7 15. axb5 axb5 {0-1 (65) Kasparov,G (2812)-Short,N (2698) Leuven 2011}) 7... Nd5 {[%emt 0:00:08]} 8. dxc5 {[%emt 0:00:24]} Bxc5 {[%emt 0:00:09]} 9. Nbd2 {[%emt 0:00:18]} Qc7 $146 {[%emt 0:00:53]} ({Predecessor:} 9... f5 10. Nb3 Be7 11. a4 bxa4 12. Rxa4 a5 13. Re1 O-O 14. Nbd4 Na6 {0-1 (27) Galofre,C (2320)-Stopa,J (2440) Pawtucket 2008}) 10. a4 {[%emt 0:01:08]} b4 {[%emt 0:05:14]} 11. Ne4 {[%emt 0:01:34]} bxc3 {[%emt 0:02:26]} 12. bxc3 {[%emt 0:00:41]} Be7 {[%emt 0:01:04]} 13. Ba3 {[%emt 0:10:10]} O-O {[%emt 0:12:40]} 14. Bxe7 {[%emt 0:04:05]} Nxe7 {[%emt 0:00:25]} 15. Nd6 {[%emt 0:03:13]} Bxf3 {[%emt 0:01:31]} 16. Qxf3 {[%emt 0:00:20]} Nbc6 {[%emt 0:00:09]} 17. Qh3 {[%emt 0:03:17]} Ng6 {[%emt 0:03:19]} 18. f4 {[%emt 0:00:43]} f5 {[%emt 0:01:51]} 19. Qe3 {[%emt 0:04:40]} Nge7 {[%emt 0:08:30]} 20. c4 {[%emt 0:01:55]} Nb4 {[%emt 0:00:42]} 21. Rab1 {[%emt 0:03:02]} Nxd3 {[%emt 0:01:40]} 22. Qxd3 {[%emt 0:00:31]} Rfb8 {[%emt 0:01:39]} 23. Kh1 {[%emt 0:02:18]} Nc8 {[%emt 0:03:46]} 24. Rxb8 {[%emt 0:05:52]} Rxb8 {[%emt 0:01:59]} 25. h3 {[%emt 0:07:29]} Nxd6 {[%emt 0:00:14]} 26. exd6 {[%emt 0:01:22]} Qc6 {[%emt 0:00:24]} 27. Qd4 {[%emt 0:04:24]} Rb4 {[%emt 0:01:18]} 28. Rc1 {[%emt 0:05:08]} Rxa4 {[%emt 0:01:34]} 29. Rc3 {[%emt 0:01:15]} Qe4 {[%emt 0:10:58]} 30. Qxe4 {[%emt 0:05:31]} fxe4 {[%emt 0:00:07]} 31. g4 {[%emt 0:00:58]} Kf7 {[%emt 0:00:29]} 32. Kg2 {[%emt 0:00:17]} Ke8 {[%emt 0:00:36]} (32... Ra2+ $17 33. Kf1 Kf6) 33. Kf2 {[%emt 0:00:24]} Ra1 {[%emt 0:02:11]} 34. Ke3 {[%emt 0:00:26]} Rd1 {[%emt 0:04:37]} 35. Kxe4 {[%emt 0:17:53]} Rxd6 {[%emt 0:00:18]} 36. Rb3 {[%emt 0:01:13]} a5 {[%emt 0:00:56]} 37. Rb8+ {[%emt 0:00:15]} Ke7 {[%emt 0:00:21]} 38. Ra8 {[%emt 0:00:07]} Rb6 {[%emt 0:04:51]} 39. Rxa5 {[%emt 0:00:42]} Rb4 {[%emt 0:00:15]} 40. Kd4 {[%emt 0:01:01]} d5 {[%emt 0:10:43]} 41. Ke5 {[%emt 0:00:09]} Rxc4 {[%emt 0:01:31]} 42. Ra7+ {[%emt 0:02:33]} Kf8 {[%emt 0:03:02]} 43. Kxe6 {[%emt 0:00:14]} Re4+ {[%emt 0:00:25]} 44. Kf5 {[%emt 0:00:17]} g6+ {[%emt 0:01:59]} 45. Kg5 $14 {[%emt 0:00:37]} Re7 {[%emt 0:07:05]} 46. Ra8+ {[%emt 0:01:38]} Kg7 {[%emt 0:00:27]} 47. Rd8 {[%emt 0:00:24]} Re3 {[%emt 0:01:38]} 48. Rd7+ {[%emt 0:00:17]} Kg8 {[%emt 0:00:16]} 49. Kf6 {[%emt 0:00:19]} h5 {[%emt 0:02:39]} 50. Kxg6 {[%emt 0:01:05]} Kf8 {[%emt 0:00:20]} 51. Rxd5 {[%emt 0:00:27]} Rxh3 {[%emt 0:00:19]} 52. Rxh5 {[%emt 0:00:12]} Ra3 {[%emt 0:00:19]} 53. Rh7 {[%emt 0:00:19]} Ra6+ {[%emt 0:00:28]} 54. Kg5 {[%emt 0:00:11]} Kg8 {[%emt 0:00:11]} 55. Rb7 {[%emt 0:00:07]} Rc6 {[%emt 0:00:27]} 56. f5 {[%emt 0:00:08]} Rc7 1-0

[Event "ESP-ch Seniors 2017"]
[Site "Altea"]
[Date "2017.10.13"]
[Round "7"]
[White "Beltran Sanz, Felix"]
[Black "Coll Sola, Joan"]
[Result "0-1"]
[ECO "B44"]
[WhiteElo "1744"]
[BlackElo "2045"]
[Annotator "NA"]
[PlyCount "92"]
[EventDate "2017.??.??"]
[EventType "swiss"]
[EventCountry "ESP"]
[SourceTitle "playchess.com"]
[Source "ChessBase"]
[SourceQuality "1"]
[TimeControl "5400+30"]

1. e4 c5 {[%emt 0:00:12]} 2. Nf3 {[%emt 0:00:00]} e6 {[%emt 0:00:03]} 3. d4 {[%emt 0:02:06]} cxd4 {[%emt 0:00:02]} 4. Nxd4 {[%emt 0:00:12]} Nc6 {[%emt 0:00:02]} 5. Be3 {[%emt 0:00:55]} Nf6 {[%emt 0:00:44]} 6. Nxc6 {[%emt 0:00:45]} bxc6 {[%emt 0:00:17]} 7. Bd3 {[%emt 0:01:25]} d5 {[%emt 0:01:15]} 8. Nd2 {[%emt 0:03:21]} Be7 {[%emt 0:01:48] B44: Sicilian: Taimanov: 5 Nb5} (8... Bd6 9. Bg5 Rb8 10. Qe2 Be5 11. O-O Qc7 12. f4 Bxb2 13. Rad1 dxe4 14. Nxe4 Nd5 15. f5 e5 16. f6 g6 {1-0 (32) Kolbak,J (2271)-Andersen,M (2499) Denmark 2014}) 9. e5 {[%emt 0:00:49]} Nd7 {[%emt 0:00:27]} 10. Nf3 {[%emt 0:00:30]} O-O {[%emt 0:02:51]} 11. O-O {[%emt 0:00:14]} f6 $146 {[%emt 0:17:04]} ({Predecessor:} 11... Qc7 12. Bf4 Rb8 13. b3 Nc5 14. Re1 Rd8 15. c3 Nxd3 16. Qxd3 h6 17. Rad1 c5 {1-0 (53) Janos,M (2269)-Ondrus,M (2317) Slovakia 2015}) 12. exf6 {[%emt 0:07:40]} Bxf6 {[%emt 0:03:10]} 13. c3 {[%emt 0:00:56]} e5 {[%emt 0:03:11]} 14. Bc2 {[%emt 0:02:22]} Nb6 {[%emt 0:04:11]} 15. h3 {[%emt 0:02:04]} Be6 {[%emt 0:05:47]} 16. Re1 {[%emt 0:02:56]} Nd7 {[%emt 0:03:38]} 17. Qd2 {[%emt 0:01:31]} h6 {[%emt 0:03:04]} 18. Bb3 {[%emt 0:01:48]} Qe7 {[%emt 0:04:12]} 19. Qc2 {[%emt 0:13:24]} (19. Rad1 $11) 19... Rfe8 {[%emt 0:07:35]} 20. Qg6 {[%emt 0:09:12]} Bf7 {[%emt 0:00:56]} 21. Qc2 {[%emt 0:00:13]} Nc5 {[%emt 0:00:52]} 22. Qe2 {[%emt 0:04:09]} Nxb3 {[%emt 0:01:44]} 23. axb3 {[%emt 0:00:11]} d4 {[%emt 0:02:15]} 24. Bd2 {[%emt 0:01:01]} c5 {[%emt 0:00:50]} 25. c4 {[%emt 0:01:28]} e4 {[%emt 0:03:08]} 26. Nh2 {[%emt 0:00:27]} d3 {[%emt 0:04:18]} 27. Qg4 {[%emt 0:00:48]} h5 {[%emt 0:03:26]} 28. Qf5 {[%emt 0:03:31]} Bxb2 {[%emt 0:00:57]} 29. Rab1 {[%emt 0:00:09]} Qf6 {[%emt 0:01:02]} 30. Qxc5 {[%emt 0:01:52]} Bd4 {[%emt 0:00:31]} 31. Qb4 {[%emt 0:02:28]} Bxf2+ {[%emt 0:01:00]} 32. Kh1 {[%emt 0:00:18]} Bxe1 {[%emt 0:00:03]} 33. Rxe1 {[%emt 0:00:33]} Rab8 {[%emt 0:03:32]} 34. Qa3 {[%emt 0:00:12] [#]} (34. Qa5 $142) 34... Qb6 {[%emt 0:02:14]} (34... e3 $142 $1 35. Rxe3 (35. Bxe3 Rxe3) 35... Qf2) 35. Nf1 {[%emt 0:00:41]} Qxb3 {[%emt 0:01:16]} 36. Qxa7 {[%emt 0:00:16]} Rb7 {[%emt 0:00:41]} 37. Qf2 {[%emt 0:03:01]} Bxc4 {[%emt 0:03:00]} 38. Ne3 {[%emt 0:00:18]} Qa2 {[%emt 0:01:14]} 39. Nxc4 {[%emt 0:03:31]} Qxc4 {[%emt 0:00:16]} 40. Qe3 {[%emt 0:00:21]} Qa2 {[%emt 0:01:20]} 41. Bc3 {[%emt 0:01:29]} Rb1 {[%emt 0:00:57]} 42. Rxb1 {[%emt 0:00:54]} Qxb1+ {[%emt 0:00:02]} 43. Kh2 {[%emt 0:00:13]} Qb8+ {[%emt 0:02:20]} 44. Kg1 {[%emt 0:00:25]} Qd8 {[%emt 0:03:55]} 45. Qg3 {[%emt 0:00:40]} Qd7 $19 {[%emt 0:00:14]} 46. Qg6 {[%emt 0:00:31]} Qf7 {[%emt 0:02:08]} 0-1